Cogmind - Beta 12 X1 @@@ ROGUE MODE // 2022.07.18 @ 14:42:41 Player: youngster Result: Destroyed by G-34 Mercenary with Small Laser Performance ------------- Evolutions (0) 0 Regions Visited (1) 200 Robots Destroyed (35) 175 Value Destroyed (747) 747 Prototype IDs (0) 0 Alien Tech Used (0) 0 Bonus (0) 0 TOTAL SCORE: 1122 Bonus ------- None Cogmind --------- Core Integrity 0/250 Matter 238/300 Energy 265/265 System Corruption 0% Temperature Cool (92) Movement Treading (320) Ox2 Location -10/Materials Parts ------- > --- POWER (1) -------- Reinforced Ion Engine > --- PROPULSION (2) --- Light Treads Aluminum Leg > --- UTILITY (2) ------ High-capacity Storage Unit Light Armor Plating > --- WEAPON (2) ------- Heavy Assault Rifle Heavy Assault Rifle > --- INVENTORY (20) --- Reinforced Ion Engine Aluminum Leg Aluminum Leg Wheel Compact Wheel High-capacity Matter Pod (200) Seismic Detector Targeting Computer Weapon Shielding Tractor Beam EM Pulse Gun EM Pulse Gun Small Laser Assault Rifle Heavy Assault Rifle Heavy Assault Rifle Datajack Peak State ------------ > --- POWER ------------ Reinforced Ion Engine > --- PROPULSION ------- Light Treads Compact Wheel > --- UTILITY ---------- High-capacity Storage Unit Light Armor Plating > --- WEAPON ----------- Heavy Assault Rifle Heavy Assault Rifle > --- INVENTORY -------- Reinforced Ion Engine Aluminum Leg Aluminum Leg Aluminum Leg Wheel High-capacity Matter Pod Seismic Detector Targeting Computer Weapon Shielding Tractor Beam EM Pulse Gun EM Pulse Gun Small Laser Assault Rifle Heavy Assault Rifle Heavy Assault Rifle Datajack [Rating: 12] Favorites ----------- Power Reinforced Ion Engine Engine Reinforced Ion Engine Propulsion Light Treads Treads Light Treads Leg Aluminum Leg Wheel Compact Wheel Utility Large Storage Unit Device Seismic Detector Storage Large Storage Unit Protection Weapon Shielding Weapon Heavy Assault Rifle Ballistic Gun Heavy Assault Rifle Build | -11 -10 ------- Run | Scr Mat Slots Evolved . | . . Power . | . . Propulsion . | . . Utility . | . . Weapon . | . . Parts Attached 23 | 7 16 Power 2 | 1 1 Engine 2 | 1 1 Core . | . . Reactor . | . . Propulsion 7 | 2 5 Treads 3 | 2 1 Leg 2 | . 2 Wheel 2 | . 2 Hover . | . . Flight . | . . Utility 8 | 2 6 Device 3 | 1 2 Storage 3 | 1 2 Processor . | . . Hackware . | . . Protection 2 | . 2 Artifact . | . . Weapon 6 | 2 4 Energy Gun . | . . Energy Cannon . | . . Ballistic Gun 6 | 2 4 Ballistic Cannon . | . . Launcher . | . . Special Weapon . | . . Impact Weapon . | . . Slashing Weapon . | . . Piercing Weapon . | . . Special Melee Weapon . | . . Unidentified Prototypes . | . . Parts Lost 3 | . 3 Power . | . . Propulsion 2 | . 2 Utility 1 | . 1 Weapon . | . . Highest Loss Streak 2 | . 2 To Critical Strikes . | . . Average Slot Usage (%) 94 | . 94 Engine 14 | . 14 Treads 17 | . 17 Leg 1 | . 1 Wheel 8 | . 8 Device 7 | . 7 Storage 14 | . 14 Protection 1 | . 1 Ballistic Gun 27 | . 27 Naked Turns . | . . Heaviest Build 59 | 15 59 Greatest Support 40 | 40 40 Greatest Overweight (x) 3 | . 3 Average Overweight (x) 1 | . 1 Largest Inventory Capacity 20 | 8 20 Average Capacity 15 | 7 15 Most Carried 17 | 4 17 Average Carried 10 | 2 11 Final Capacity 20 | 8 20 Final Carried 17 | 3 17 Class Distribution -------------------- 100% | Mutant Dominant Class ---------------- Mutant | -10/Materials Resources | -11 -10 ----------- Run | Scr Mat Matter Collected 1075 | 287 788 Remotely . | . . Salvage Created 1195 | 153 1042 Parts 83 | 8 75 Haulers Intercepted 2 | . 2 Recyclers Shooed . | . . Parts Field Recycled . | . . Retrieved Matter . | . . Parts Self-Destructed . | . . Prevented . | . . Kills | -11 -10 ------- Run | Scr Mat Combat Hostiles Destroyed 24 | . 24 Guns 24 | . 24 Classes Destroyed 7 | 2 5 Worker 2 | . 2 Tunneler 4 | 3 1 Hauler 2 | . 2 Recycler 2 | 1 1 Operator 1 | . 1 Swarmer 6 | . 6 Grunt 18 | . 18 Best Kill Streak 10 | 4 10 Combat Bots Only 8 | . 8 Max Kills in Single Turn 2 | 2 2 Gunslinging . | . . Exploded . | . . Melee . | . . Uniques/NPCs Destroyed . | . . Combat | -11 -10 -------- Run | Scr Mat Damage Taken 1181 | . 1181 Core 254 | . 254 Absorbed by Shields . | . . Redirected to Shielding 3 | . 3 Regen/Repaired (Parts) 221 | . 221 Core Remaining (%) 100 | 100 . Volleys Fired 87 | 5 82 Largest 2 | 2 2 Hottest 46 | 40 46 Shots Fired 174 | 10 164 Gun 174 | 10 164 Cannon . | . . Launcher . | . . Special . | . . Kinetic 174 | 10 164 Thermal . | . . Explosive . | . . Electromagnetic . | . . Robot Hit Streak 17 | 3 17 Robot Miss Streak 6 | 1 6 Penetration Max . | . . Secondary Targets 3 | . 3 Max Gunslinging Chain 1 | . 1 Shots Hit Robots 115 | 6 109 Core Hits 48 | 5 43 Critical Kills . | . . Critical Parts Destroyed . | . . Critical Strikes . | . . Melee Attacks . | . . Impact . | . . Slashing . | . . Piercing . | . . Sneak Attacks . | . . Combat Hostiles . | . . Follow-up Attacks . | . . Damage Inflicted 1738 | 85 1653 Guns 1733 | 85 1648 Cannons . | . . Explosions . | . . Melee . | . . Ramming 5 | . 5 Kinetic 1733 | 85 1648 Thermal . | . . Explosive . | . . Electromagnetic . | . . Impact . | . . Slashing . | . . Piercing . | . . Highest Corruption . | . . Average Corruption . | . . Corruption Purged . | . . Corruption Blocked . | . . Overload Shots . | . . Overflow Damage . | . . Projectiles . | . . Explosions . | . . Melee . | . . Knockbacks . | . . Impact . | . . Kinetic . | . . Secondary . | . . Self-Inflicted Damage . | . . Shots . | . . Rammed 1 | . 1 Targets Rammed 1 | . 1 Kicked . | . . Crushed . | . . Highest Temperature 145 | . 145 Average Temperature 51 | . 51 Received Heat Transfer 570 | . 570 Siege Activations . | . . Robots Corrupted . | . . Combat Hostiles . | . . Parts Fried . | . . Impact Corruptions . | . . Robots Melted . | . . Combat Hostiles . | . . Parts Melted . | . . Heat Transferred . | . . Parts Sabotaged . | . . Parts Stolen . | . . Parts Stripped . | . . Power Chain Reactions . | . . Missiles Intercepted . | . . Alert | -11 -10 ------- Run | Scr Mat Peak Influence 350 | 20 350 Initial 13 | . 13 Average 157 | 5 167 Maximum Alert Level 1 | . 1 Low Security (%) 69 | 100 67 Level 1 30 | . 32 Level 2 . | . . Level 3 . | . . Level 4 . | . . Level 5 . | . . High Security . | . . Max Security . | . . Squads Dispatched 7 | . 7 Investigation 4 | . 4 Extermination . | . . Reinforcement 3 | . 3 Assault . | . . Garrison . | . . Intercept . | . . Searches Triggered . | . . Construction Impeded . | . . Haulers Reinforced . | . . Active Scanning Responses . | . . Cargo Convoy Interrupts . | . . Stealth | -11 -10 --------- Run | Scr Mat Distress Signals 2 | . 2 Communications Jammed . | . . Distress Signals . | . . Times Spotted 39 | . 39 Peak Tracking Total 5 | . 5 Tactical Retreats 1 | . 1 Traps | -11 -10 ------- Run | Scr Mat Traps Triggered 1 | . 1 Indirectly . | . . Trap Hack Attempts . | . . Triggered . | . . Disarmed . | . . Reprogrammed . | . . Reused . | . . Traps Extracted . | . . Installed . | . . Triggered . | . . Machines | -11 -10 ---------- Run | Scr Mat Machines Disabled . | . . Max in Single Turn . | . . Machines Sabotaged . | . . Garrisons Compromised . | . . Overloaded Fab Kills . | . . Hacking | -11 -10 --------- Run | Scr Mat Machines Accessed 9 | . 9 Terminals 6 | . 6 Fabricators . | . . Repair Stations 1 | . 1 Recycling Units 2 | . 2 Scanalyzers . | . . Garrison Access . | . . Total Hacks 29 | . 29 Successful 12 | . 12 Failed 17 | . 17 Catastrophic 1 | . 1 Database Lockouts . | . . Manual 12 | . 12 Terminals 20 | . 20 Fabricators . | . . Repair Stations 7 | . 7 Recycling Units 2 | . 2 Scanalyzers . | . . Garrison Access . | . . Terminal Hacks 4 | . 4 Part Schematic 1 | . 1 Robot Analysis 2 | . 2 Hauler Manifests 1 | . 1 Fabricator Hacks . | . . Repair Station Hacks 5 | . 5 Scan Component 3 | . 3 Repair 2 | . 2 Recycling Unit Hacks . | . . Scanalyzer . | . . Garrison Access Hacks . | . . Unauthorized Hacks 3 | . 3 Terminals 1 | . 1 Botnet 1 | . 1 Fabricators . | . . Repair Stations . | . . Recycling Units 2 | . 2 Tunnel 2 | . 2 Scanalyzers . | . . Garrison Access . | . . Data Cores Recovered . | . . Used . | . . Hacking Detections 7 | . 7 Full Trace Events 3 | . 3 Feedback Events . | . . Feedback Blocked . | . . Robot Schematics Acquired . | . . Robots Built . | . . Authchips . | . . Time . | . . Total Robot Build Rating . | . . Part Schematics Acquired 1 | . 1 Parts Built . | . . Authchips . | . . Time . | . . Total Part Build Rating . | . . Parts Repaired 2 | . 2 Time 76 | . 76 Parts Recycled . | . . Recycled Matter . | . . Retrieved Matter . | . . Retrieved Components . | . . Parts Scanalyzed . | . . Part Schematics Acquired . | . . Parts Damaged . | . . Bothacking | -11 -10 ------------ Run | Scr Mat Used RIF Installer . | . . Robots Hacked . | . . Non-combat . | . . Combat . | . . Robot Hacks Applied . | . . Relay Couplers Released . | . . Fabnet Peak Effective % . | . . Robots Rewired . | . . Allies Hacked . | . . Hacks Repelled . | . . Allies | -11 -10 -------- Run | Scr Mat Total Allies . | . . Largest Group . | . . Highest-Rated Group . | . . Highest-Rated Ally . | . . Total Orders . | . . Ally Attacks . | . . Total Damage . | . . Kills . | . . Allies Corrupted . | . . Allies Melted . | . . Intel | -11 -10 ------- Run | Scr Mat Robot Analysis Total 2 | . 2 Derelict Logs Recovered . | . . Drone Launches . | . . Drone Recoveries . | . . Exploration | -11 -10 ------------- Run | Scr Mat Turns Passed 1578 | 95 1483 Spaces Moved 638 | 44 594 Core 3 | 3 . Treads 296 | 41 255 Legs . | . . Wheels 339 | . 339 Hover . | . . Flight . | . . Fastest Speed 50 | 50 130 Average Speed 159 | 152 159 Slowest Speed 320 | 160 320 Overloaded Moves . | . . Propulsion Burnouts . | . . Robots Hopped . | . . Cave-ins Triggered . | . . Exploration Rate (%) 48 | 5 91 Regions Visited 1 Branch Regions . Pre-discovered Areas 2 | . 2 Known Exits Taken . | . . Unknown Exits Taken 1 | 1 . Scrap Searched . | . . Spaces Dug . | . . Terrain Destroyed . | . . Melee . | . . Projectile . | . . AOE . | . . Terrain Rammed . | . . Walls Destroyed . | . . Machines Disabled . | . . Actions | -11 -10 --------- Run | Scr Mat Total 1023 | 59 964 Wait 247 | . 247 Move 637 | 43 594 Hop . | . . Pick Up 19 | 4 15 Fast Attach 12 | 6 6 Attach 4 | 1 3 Detach 3 | . 3 Swap 7 | . 7 Drop 6 | . 6 Fire 87 | 5 82 Melee . | . . Ram . | . . Kick . | . . Crush 1 | . 1 Escape Stasis . | . . Rewire . | . . Trap . | . . Miscellaneous . | . . Route ------- -11/Scrapyard -10/Materials (discovered 4 exits: [*Mat x3] / [*Min]) History --------- Turn | Location | Event 36 | -11/Scrapyard | Discovered new exit (range 16) 96 | -11/Scrapyard | Entered Materials 280 | -10/Materials | Discovered new exit (range 8) 312 | -10/Materials | Build established: Mutant 501 | -10/Materials | Discovered new exit (range 14) 536 | -10/Materials | Core integrity fell below 50% 623 | -10/Materials | Discovered new exit (range 16) 822 | -10/Materials | Repaired Broken Hvy. Assault Rifle 856 | -10/Materials | Repaired Hvy. Assault Rifle 1127 | -10/Materials | Destroyed 8 combat bots 1149 | -10/Materials | Discovered new exit (range 16) 1485 | -10/Materials | Core integrity fell below 20% 1579 | -10/Materials | Destroyed by G-34 Mercenary with Small Laser Last Messages --------------- 01470_ R-06 Scavenger collects Lgt. Assault Rifle. 01473_ R-06 Scavenger collects Flight Unit. 01478_ G-34 Mercenary destroyed. 01488_ Acquired 30 matter. 01490_ U-05 Engineer builds a Door. 01494_ G-34 Mercenary destroyed. 01501_ Acquired 10 matter. 01526_ Connecting with Terminal... >>Analysis(U-05 Engineer) Downloading analysis... U-05 Engineer Tier: 1 U-class builders lay floors, assemble new machines, and reinforce and analyze the structural integrity of walls. They travel alone, but all those within a certain vicinity will work together to complete a task. 01526_ ALERT: Suspicious activity at Terminal M006. Dispatching Investigation squad. 01539_ Acquired Lgt. Armor Plating. 01547_ K-01 Serf collects debris. 01569_ G-34 Mercenary destroyed. Map ----- +----------------------------------------------------+ | | | | | | | | | | | | | | | | | | | | | | | | | | | | | | | | | | | | | | | | | ???????????????????##############??????????????? | | ##????######???????# #??????????????? | | #???##!!!!##??????# T """ #??????????????? | | #???#! !#??????# """ ##?????????????? | | #???#! !#??????# """ # ?????????????? | | ##### ###????# @%= # #????????????? | | / #????#######g###### #????????????? | | ############ #?????????# !u *#????????????? | | ## #????# ########### ####=#????????????? | | #????# #??#%#????????????? | | T ######+######## ####+###??????????? | | # #????# # ![=! #??????????? | | ## #" #????# # ]=*= #??????????? | | ?## ##" """ ###### #= = ""#??????????? | | ??# ##" """"" ## %+[%* Y"#??????????? | | ??# ##T """"" ## *# = ""#??????????? | | ??# ##" """"" + # #??????????? | | ??# ##" """ ## ##################????????? | | ??# ##" ## #????????##### !!#????????? | | ?## ## ## #????????# !!#????????? | | ## ###+####### ########## < ==#????????? | | ! ==#????????? | | T | !!#????????? | | ! !!#????????? | | ## ############ ##########???? | | ?###!###??????????# # """ #???? | | ???# #????????????# """"""" # "T" #???? | | ####+##???????????# """"""" # " " #???? | | #???????????# """"""" # #???? | | #???????????# """"""" + #???? | +----------------------------------------------------+ Best States ------------- Heat Dissipation 25 Energy Generation 12 Energy Capacity 265 Matter Stores 300 Matter Capacity 300 Sight Range 16 Terrain Scan Density 10 Armor Coverage 150 Weapon Shielding 33 Evasion (%) 40 Recoil Reduction 2 Item Schematics ----------------- Huge Storage Unit | -10/Materials | Hacked Robot Schematics ------------------ None Fabricated ------------ Nothing Alien Tech Used ----------------- None Achievements -------------- None Challenges ------------ None Game ------ Seed ActiveWarpWarhead Manual? 0 Play Time 00:17:35 Cumulative 323.5 hours Start 2022.07.18 @ 13:53:24 End 2022.07.18 @ 14:42:41 Sessions 1 Manual Loads 0 Difficulty Rogue Special Mode None Game No. 148 Rogue 148 Adventurer 0 Explorer 0 Win Type - Total 8 Types 5/0/1/1/0/0/0/1/0 Lore% 88 Gallery% 91 Achievement% 70 Wizard Run 0 Options --------- ASCII 0 Keyboard 1 Movement Vi Keybinds 0 Fullscreen 2 Font 18/Cog Map View 76x50 Tactical HUD 1 Map Filters NONE Filters NONE Steam 0 RUN: d7cfc2db-ad16-4516-991c-c1daf857fec1